Cogmind - Beta 15 @@@ ROGUE MODE // 2025.08.14 @ 18:03:50 Player: TapeIsSticky Result: Self-destructed Performance ------------- Evolutions (1) 500 Regions Visited (5) 1000 Robots Destroyed (102) 510 Value Destroyed (2042) 2042 Prototype IDs (25) 500 Alien Tech Used (0) 0 Bonus (309) 309 TOTAL SCORE: 4861 Bonus ------- High Alert Combat Kills 127 Aligned with FarCom 300 Friendly Fire -118 Cogmind --------- Core Integrity 155/400 Matter 300/300 Energy 265/265 System Corruption 1% Temperature Cool (0) Movement Treading (160) Location -9/Exiles Parts ------- > --- POWER (1) -------- Improved Ion Engine > --- PROPULSION (3) --- Light Treads Light Treads > --- UTILITY (2) ------ Salvage Targeting Computer > --- WEAPON (3) ------- Improved Light Cannon > --- INVENTORY (5) ---- (None) Peak State ------------ > --- POWER ------------ Improved Ion Engine > --- PROPULSION ------- Light Treads Light Treads Improved Treads > --- UTILITY ---------- Large Storage Unit Hardened Light Armor Plating > --- WEAPON ----------- Heavy Assault Rifle Improved Assault Rifle Improved Assault Rifle > --- INVENTORY -------- Improved Ion Engine Light Treads Light Treads Light Treads Light Treads Armored Wheel Advanced Heat Sink YI-UF0's Bottomless Matter Pit Transport Network Coupler Salvage Targeting Computer Core Shielding Heavy EM Pulse Gun Improved Assault Rifle Improved Light Cannon Grenade Launcher [Rating: 20] Favorites ----------- Power Improved Ion Engine Engine Improved Ion Engine Propulsion Light Treads Treads Light Treads Wheel Wheel Utility Large Storage Unit Device Seismic Detector Storage Large Storage Unit Processor Salvage Targeting Computer Protection Hardened Light Armor Plating Weapon Assault Rifle Energy Gun Heavy EM Pulse Gun Ballistic Gun Assault Rifle Ballistic Cannon Improved Light Cannon Launcher Grenade Launcher Build | -11 -10 -10 -9 -9 -9 ------- Run | Yrd Mat Min Mat Min Exi Slots Evolved 2 | . . . 2 . . Power . | . . . . . . Propulsion 1 | . . . 1 . . Utility . | . . . . . . Weapon 1 | . . . 1 . . Parts Attached 47 | 7 4 7 24 1 4 Power 8 | 1 2 1 4 . . Engine 8 | 1 2 1 4 . . Core . | . . . . . . Reactor . | . . . . . . Propulsion 15 | 2 . 1 10 . 2 Treads 13 | 2 . 1 8 . 2 Leg . | . . . . . . Wheel 2 | . . . 2 . . Hover . | . . . . . . Flight . | . . . . . . Utility 10 | 2 1 3 3 . 1 Device 2 | 1 . 1 . . . Storage 3 | 1 1 1 . . . Processor 1 | . . . . . 1 Hackware . | . . . . . . Protection 4 | . . 1 3 . . Artifact . | . . . . . . Weapon 14 | 2 1 2 7 1 1 Energy Gun 3 | . . 2 1 . . Energy Cannon . | . . . . . . Ballistic Gun 9 | 2 . . 6 1 . Ballistic Cannon 1 | . . . . . 1 Launcher 1 | . 1 . . . . Special Weapon . | . . . . . . Impact Weapon . | . . . . . . Slashing Weapon . | . . . . . . Piercing Weapon . | . . . . . . Special Melee Weapon . | . . . . . . Unidentified Prototypes 2 | . . 1 1 . . Corrupted Parts 1 | . . 1 . . . System Corruption 2 | . . 2 . . . Parts Lost 15 | . 1 1 4 . 9 Power 2 | . 1 . 1 . . Propulsion 5 | . . 1 1 . 3 Utility 2 | . . . 1 . 1 Weapon 6 | . . . 1 . 5 Highest Loss Streak 9 | . 1 1 2 . 9 To Critical Strikes 6 | . 1 . . . 5 Average Backups 11 | 2 10 14 14 14 6 Power 1 | . 1 1 1 1 1 Propulsion 2 | . 1 1 3 5 1 Utility 3 | . 2 4 5 4 1 Weapon 4 | . 5 8 4 3 1 Tool/Special . | . . . . . . Unused Backups 19 | . 1 1 5 2 10 Power 6 | . . . 2 . 4 Propulsion 5 | . . . . 1 4 Utility 3 | . . 1 . . 2 Weapon 5 | . 1 . 3 1 . Tool/Special . | . . . . . . Average Slot Usage (%) 92 | . 98 99 99 100 67 Engine 11 | . 13 14 11 11 11 Treads 29 | . 28 28 28 33 32 Wheel 1 | . . . 3 . . Device 7 | . 14 13 5 . . Storage 10 | . 14 14 11 11 3 Processor 1 | . . . . . 7 Protection 4 | . . . 5 11 10 Ballistic Gun 23 | . 27 26 32 33 1 Peak Build Rating 20 | 7 9 18 20 20 18 Average Rating 12 | 6 7 9 17 20 11 On Entrance 10 | . 7 8 10 20 20 Naked Turns . | . . . . . . Heaviest Build 41 | 13 30 32 41 41 32 Greatest Support 63 | 40 40 40 63 63 63 Greatest Overweight (x) 3 | 1 . . 3 . . Average Overweight (x) . | . . . . . . Largest Inventory Capacity 15 | 8 15 15 15 15 15 Average Capacity 12 | 7 12 15 15 15 8 Most Carried 15 | 4 15 15 15 15 15 Average Carried 11 | 2 10 14 14 14 6 Final Capacity 15 | 8 15 15 15 15 5 Final Carried 15 | 4 15 15 15 15 . Class Distribution -------------------- 62% | Mutant 12% | Tank 12% | Scavenger-Gunner 9% | Scavenger-Tank Dominant Class ---------------- Mutant | -10/Materials Mutant | -10/Mines Scavenger-Gunner | -9/Materials Scavenger-Tank | -9/Mines Mutant | -9/Exiles Resources | -11 -10 -10 -9 -9 -9 ----------- Run | Yrd Mat Min Mat Min Exi Matter Collected 4266 | 358 514 1327 1569 89 409 Remotely . | . . . . . . Salvage Created 3020 | 170 568 287 1785 142 68 Parts 225 | 15 51 17 129 13 . Haulers Intercepted 7 | . 2 . 5 . . Recyclers Shooed 3 | . . . 3 . . Parts Field Recycled . | . . . . . . Retrieved Matter . | . . . . . . Parts Self-Destructed . | . . . . . . Prevented . | . . . . . . Kills | -11 -10 -10 -9 -9 -9 ------- Run | Yrd Mat Min Mat Min Exi Combat Hostiles Destroyed 75 | . 14 9 42 4 6 Guns 58 | . 14 8 32 4 . Cannons 1 | . . . . . 1 AOE 16 | . . 1 10 . 5 Classes Destroyed 15 | 3 6 . 5 . 1 Worker 5 | 1 1 . 3 . . Builder 2 | . 1 . 1 . . Tunneler 6 | 6 . . . . . Hauler 7 | . 2 . 5 . . Recycler 3 | 1 . . 2 . . Mechanic 1 | . . . 1 . . Operator 1 | . . . 1 . . Watcher 7 | . 2 . 5 . . Swarmer 28 | . 7 6 13 2 . Grunt 29 | . 6 2 21 . . Duelist 1 | . . . 1 . . Protector 1 | . . . 1 . . Sentry 8 | . . . 6 2 . Subdweller 1 | . 1 . . . . Assembled 5 | . . . . . 5 Best Kill Streak 7 | 3 4 3 7 2 5 Combat Bots Only 5 | . 3 3 5 2 5 Max Kills in Single Turn 3 | 1 1 2 3 1 2 Gunslinging 1 | . . 1 1 . . Exploded 3 | . . 1 3 . 2 Melee . | . . . . . . Uniques/NPCs Destroyed 2 | . . 1 . . 1 YI-UF0 (-10/Mines) 8R-AWN (-9/Exiles) Combat | -11 -10 -10 -9 -9 -9 -------- Run | Yrd Mat Min Mat Min Exi Hostile Shots Fired 296 | . 46 32 120 6 92 Missed 73 | . 11 11 28 3 20 Hits 223 | . 35 21 92 3 72 Melee 5 | . . . 4 . 1 Projectile 218 | . 35 21 88 3 71 AOE 3 | . . 3 . . . Critical Strikes 34 | . 1 1 2 . 30 Damage Taken 3303 | . 399 291 1284 42 1287 Core 351 | . 58 48 135 . 110 Absorbed by Shields . | . . . . . . Redirected to Shielding 7 | . . . 7 . . Regen/Repaired (Parts) 125 | . . . 125 . . Core Remaining (%) 78 | 100 . 57 . . . Volleys Fired 241 | 15 55 23 97 7 44 Largest 3 | 2 2 2 3 3 3 Hottest 90 | 40 40 90 83 69 79 Shots Fired 535 | 30 109 47 254 21 74 Gun 496 | 30 108 47 245 21 45 Cannon 23 | . . . . . 23 Launcher 16 | . 1 . 9 . 6 Special . | . . . . . . Kinetic 512 | 30 108 43 242 21 68 Thermal 3 | . . . 3 . . Explosive 16 | . 1 . 9 . 6 Electromagnetic 4 | . . 4 . . . Robot Hit Streak 25 | 6 8 11 13 15 25 Robot Miss Streak 4 | 3 4 3 4 2 2 Penetration Max . | . . . . . . Secondary Targets 5 | . . 1 4 . . Max Gunslinging Chain 1 | . . 1 1 . . Shots Hit Robots 363 | 20 70 30 164 16 63 Core Hits 174 | 8 29 13 95 6 23 Critical Kills . | . . . . . . Critical Parts Destroyed 1 | . 1 . . . . Critical Strikes 2 | . 1 . . . 1 Destroy 2 | . 1 . . . 1 Melee Attacks . | . . . . . . Impact . | . . . . . . Slashing . | . . . . . . Piercing . | . . . . . . Sneak Attacks . | . . . . . . Combat Hostiles . | . . . . . . Follow-up Attacks . | . . . . . . Damage Inflicted 6598 | 258 954 449 3366 257 1314 Guns 4725 | 253 935 353 2284 257 643 Cannons 388 | . . . . . 388 Explosions 1347 | . . 62 1002 . 283 Melee . | . . . . . . Ramming 138 | 5 19 34 80 . . Kinetic 5052 | 253 935 314 2262 257 1031 Thermal 84 | . . 62 22 . . Explosive 1285 | . . . 1002 . 283 Electromagnetic 39 | . . 39 . . . Impact . | . . . . . . Slashing . | . . . . . . Piercing . | . . . . . . Highest Corruption 3 | . 1 3 1 1 1 Average Corruption 1 | . 1 2 1 1 1 Corruption Purged . | . . . . . . Corruption Blocked . | . . . . . . Effects 63 | . 2 29 13 5 14 Message Errors 9 | . . 3 4 1 1 Matter Fused 20 | . 1 9 4 1 5 Heat Flow Errors 8 | . . 4 1 . 3 Energy Discharges 4 | . . 3 . . 1 Parts Rejected 1 | . . 1 . . . Parts Fused 1 | . . . . 1 . Data Loss (minor) 14 | . 1 8 2 1 2 Data Loss (major) 1 | . . . . 1 . Misfires 3 | . . 1 1 . 1 Weapon Failures 2 | . . . 1 . 1 Overload Shots . | . . . . . . Overflow Damage 59 | . . . 52 . 7 Projectiles . | . . . . . . Explosions 59 | . . . 52 . 7 Melee . | . . . . . . Knockbacks 6 | . . . . . 6 Impact . | . . . . . . Kinetic 6 | . . . . . 6 Secondary . | . . . . . . Self-Inflicted Damage 207 | . . . 144 . 63 Shots 4 | . . . 2 . 2 Rammed 26 | 1 9 7 9 . . Targets Rammed 30 | 2 9 7 12 . . Kicked . | . . . . . . Crushed 4 | 1 . . 3 . . Highest Temperature 264 | . . 248 264 48 249 Average Temperature 40 | . . 77 26 18 59 Received Heat Transfer 587 | . 66 81 411 9 20 Effects 3 | . . . 3 . . Interference 3 | . . . 3 . . Siege Activations . | . . . . . . Martial Activations . | . . . . . . Shielding Activations . | . . . . . . Robots Disrupted . | . . . . . . Combat Hostiles . | . . . . . . Robots Corrupted . | . . . . . . Combat Hostiles . | . . . . . . Parts Fried . | . . . . . . Impact Corruptions . | . . . . . . Robots Melted . | . . . . . . Combat Hostiles . | . . . . . . Parts Melted 1 | . 1 . . . . Heat Transferred 100 | . . 50 50 . . Parts Sabotaged . | . . . . . . Parts Stolen . | . . . . . . Parts Stripped . | . . . . . . Power Chain Reactions 1 | . . 1 . . . Alert | -11 -10 -10 -9 -9 -9 ------- Run | Yrd Mat Min Mat Min Exi Maximum Alert Level 2 | . . . 2 1 . Low Security (%) 67 | 100 100 100 26 48 . Level 1 15 | . . . 29 51 . Level 2 16 | . . . 44 . . Level 3 . | . . . . . . Level 4 . | . . . . . . Level 5 . | . . . . . . High Security . | . . . . . . Max Security . | . . . . . . Peak Influence 690 | 10 135 95 690 301 . Initial 261 | . . 43 31 261 . Average 162 | 1 35 17 347 198 . Influence Increases 1984 | 40 409 222 1231 82 . Destroy 0b10 Robot/C 1320 | . 260 160 820 80 . Destroy 0b10 Robot/NC 165 | 40 30 . 95 . . Destroy Leader 258 | . 38 30 190 . . Allied During Kill 1 | . . . . 1 . Successful Hack 62 | . 29 . 33 . . Disable Machine 30 | . . . 30 . . Destroy Structure 73 | . 7 2 63 1 . Partial Spotted 15 | . 15 . . . . Lose Combat Pursuer 60 | . 30 30 . . . Influence Decreases 1984 | 40 296 252 644 667 85 Entered New Map 616 | . . 70 52 409 85 Time Decay 1308 | 40 296 182 552 238 . Lost Part 40 | . . . 40 . . Lost Ally 20 | . . . . 20 . Squads Dispatched 7 | . 1 . 6 . . Investigation 4 | . 1 . 3 . . Extermination . | . . . . . . Reinforcement 2 | . . . 2 . . Assault 1 | . . . 1 . . Garrison . | . . . . . . Intercept . | . . . . . . Searches Triggered . | . . . . . . Construction Impeded 1 | . . . 1 . . Haulers Reinforced . | . . . . . . Active Scanning Responses . | . . . . . . Cargo Convoy Interrupts . | . . . . . . Stealth | -11 -10 -10 -9 -9 -9 --------- Run | Yrd Mat Min Mat Min Exi Distress Signals 8 | . 3 . 4 1 . Communications Jammed . | . . . . . . Distress Signals . | . . . . . . Times Spotted 95 | . 22 10 52 4 7 Peak Tracking Total 9 | . 4 3 6 2 9 Tactical Retreats 4 | . 2 2 . . . Traps | -11 -10 -10 -9 -9 -9 ------- Run | Yrd Mat Min Mat Min Exi Traps Triggered 4 | . 1 . 3 . . Indirectly . | . . . . . . Trap Hack Attempts . | . . . . . . Triggered . | . . . . . . Disarmed . | . . . . . . Reprogrammed . | . . . . . . Reused . | . . . . . . Traps Extracted . | . . . . . . Installed . | . . . . . . Triggered . | . . . . . . Machines | -11 -10 -10 -9 -9 -9 ---------- Run | Yrd Mat Min Mat Min Exi Machines Disabled 7 | . . . 2 1 4 Max in Single Turn 2 | . . . 2 . 1 Machines Repaired . | . . . . . . Machines Dismantled . | . . . . . . Machines Sabotaged . | . . . . . . Overloaded Fab Kills . | . . . . . . Hacking | -11 -10 -10 -9 -9 -9 --------- Run | Yrd Mat Min Mat Min Exi Machines Accessed 15 | . 6 . 7 . 2 Terminals 11 | . 6 . 5 . . Fabricators . | . . . . . . Repair Stations 1 | . . . 1 . . Recycling Units 1 | . . . 1 . . Scanalyzers . | . . . . . . Garrison Access . | . . . . . . Total Hacks 38 | . 17 . 19 . 2 Successful 23 | . 9 . 12 . 2 Failed 14 | . 7 . 7 . . Catastrophic . | . . . . . . Database Lockouts 1 | . 1 . . . . Manual 29 | . 13 . 15 . 1 Terminals 32 | . 17 . 15 . . Fabricators . | . . . . . . Repair Stations 3 | . . . 3 . . Recycling Units 1 | . . . 1 . . Scanalyzers . | . . . . . . Garrison Access . | . . . . . . Terminal Hacks 7 | . 2 . 3 . 2 Record 1 | . . . . . 1 Robot Analysis 3 | . 1 . 2 . . Branch Access Points 1 | . . . 1 . . Zone Layout 1 | . 1 . . . . Proto ID Catalog 1 | . . . . . 1 Fabricator Hacks . | . . . . . . Repair Station Hacks 2 | . . . 2 . . Scan Component 1 | . . . 1 . . Repair 1 | . . . 1 . . Recycling Unit Hacks 1 | . . . 1 . . Retrieve Components 1 | . . . 1 . . Scanalyzer . | . . . . . . Garrison Access Hacks . | . . . . . . Unauthorized Hacks 13 | . 7 . 6 . . Terminals 13 | . 7 . 6 . . Botnet 3 | . 2 . 1 . . Skim 10 | . 5 . 5 . . Fabricators . | . . . . . . Repair Stations . | . . . . . . Recycling Units . | . . . . . . Scanalyzers . | . . . . . . Garrison Access . | . . . . . . Data Cores Recovered . | . . . . . . Used . | . . . . . . Hacking Detections 9 | . 5 . 4 . . Full Trace Events 1 | . 1 . . . . Feedback Events 1 | . 1 . . . . Corruption 1 | . 1 . . . . Feedback Blocked . | . . . . . . Robot Schematics Acquired . | . . . . . . Robots Built . | . . . . . . Authchips . | . . . . . . Time . | . . . . . . Total Robot Build Rating . | . . . . . . Part Schematics Acquired . | . . . . . . Parts Built . | . . . . . . Authchips . | . . . . . . Time . | . . . . . . Total Part Build Rating . | . . . . . . Parts Repaired 1 | . . . 1 . . Time 26 | . . . 26 . . Parts Recycled . | . . . . . . Recycled Matter . | . . . . . . Retrieved Matter . | . . . . . . Retrieved Components 3 | . . . 3 . . Parts Scanalyzed . | . . . . . . Part Schematics Acquired . | . . . . . . Parts Damaged . | . . . . . . Bothacking | -11 -10 -10 -9 -9 -9 ------------ Run | Yrd Mat Min Mat Min Exi Used RIF Installer . | . . . . . . Robots Hacked . | . . . . . . Non-combat . | . . . . . . Combat . | . . . . . . Robot Hacks Applied . | . . . . . . Relay Couplers Released . | . . . . . . Fabnet Peak Effective % . | . . . . . . Robots Rewired . | . . . . . . Allies Hacked . | . . . . . . Hacks Repelled . | . . . . . . Allies | -11 -10 -10 -9 -9 -9 -------- Run | Yrd Mat Min Mat Min Exi Total Allies 1 | . . . . 1 . Largest Group 1 | . . . . 1 . Highest-Rated Group 31 | . . . . 31 . Highest-Rated Ally 31 | . . . . 31 . Total Orders . | . . . . . . Ally Attacks 3 | . . . . 3 . Total Damage 20 | . . . . 20 . Kills . | . . . . . . Allies Corrupted . | . . . . . . Allies Melted . | . . . . . . Intel | -11 -10 -10 -9 -9 -9 ------- Run | Yrd Mat Min Mat Min Exi Active Infowar (turns) 4294 | 314 1721 1084 1175 . . Seismic 4294 | 314 1721 1084 1175 . . Robot Analysis Total 3 | . 1 . 2 . . Derelict Logs Recovered 2 | . . 1 . 1 . Drone Launches . | . . . . . . Drone Recoveries . | . . . . . . Exploration | -11 -10 -10 -9 -9 -9 ------------- Run | Yrd Mat Min Mat Min Exi Turns Passed 7940 | 542 1721 1138 2431 501 1607 Spaces Moved 3836 | 155 753 636 1177 209 906 Core 6 | 6 . . . . . Treads 3434 | 149 753 636 781 209 906 Legs . | . . . . . . Wheels 396 | . . . 396 . . Hover . | . . . . . . Flight . | . . . . . . Fastest Speed 50 | 50 160 160 120 160 160 Average Speed 156 | 156 160 160 148 160 160 Slowest Speed 240 | 160 160 160 240 160 160 Overloaded Moves . | . . . . . . Propulsion Burnouts . | . . . . . . Robots Hopped . | . . . . . . Potential Cave-ins . | . . . . . . Cave-ins Triggered . | . . . . . . Exploration Rate (%) 62 | 17 96 99 87 15 61 Regions Visited 5 Branch Regions 3 Pre-discovered Areas 3 | . . . 1 1 1 Known Exits Taken 2 | . . 1 1 . . Unknown Exits Taken 3 | 1 1 . . 1 . Scrap Searched 3 | . . 3 . . . Spaces Dug 12 | . . . 7 . 5 Terrain Destroyed 96 | . 6 5 63 . 22 Melee . | . . . . . . Projectile . | . . . . . . AOE 96 | . 6 5 63 . 22 Terrain Rammed . | . . . . . . Walls Destroyed . | . . . . . . Machines Disabled . | . . . . . . Actions | -11 -10 -10 -9 -9 -9 --------- Run | Yrd Mat Min Mat Min Exi Total 5325 | 420 1154 704 1673 363 1011 Wait 1049 | 238 319 25 312 140 15 Move 3831 | 154 752 635 1176 208 906 Hop . | . . . . . . Pick Up 47 | 4 12 2 15 3 11 Fast Attach 16 | 7 1 1 3 . 4 Attach 14 | . . 2 6 . 6 Detach . | . . . . . . Swap 42 | . 4 7 30 1 . Drop 55 | . 2 2 22 4 25 Fire 241 | 15 55 23 97 7 44 Melee . | . . . . . . Ram . | . . . . . . Kick . | . . . . . . Crush 30 | 2 9 7 12 . . Escape Stasis . | . . . . . . Rewire . | . . . . . . Trap . | . . . . . . Miscellaneous . | . . . . . . Route ------- -11/Scrapyard -10/Materials (discovered 5 exits: *Mat x3 / [*Min] / [*Sub]) -10/Mines (discovered 3 exits: *Mat x2 / [*Sub]) -9/Materials (discovered 4 exits: [*Mat x3] / *Min) -9/Mines -9/Exiles (discovered 1 exit: [*Min]) History --------- Turn | Location | Event 51 | -11/Scrapyard | Discovered new exit (range 15) 543 | -11/Scrapyard | Entered Materials 544 | -10/Materials | Build established: Mutant 791 | -10/Materials | Discovered new exit (range 8) 837 | -10/Materials | Central database locked down 959 | -10/Materials | Discovered new exit (range 4) 1059 | -10/Materials | Discovered new exit (range 15) 1118 | -10/Materials | Discovered new exit (range 9) 1326 | -10/Materials | Learned Storage stockpile data 1343 | -10/Materials | Derelicts attacked the area 1364 | -10/Materials | Identified exit to Materials 1392 | -10/Materials | Learned 2 Mines zone layouts 1435 | -10/Materials | Loaded intel: 2 recycling unit locations 2264 | -10/Materials | Entered Mines 2300 | -10/Mines | Found a hidden stash of uninstalled traps 2332 | -10/Mines | Destroyed YI-UF0 2350 | -10/Mines | Found Corrupted Prototype Storage 2350 | -10/Mines | Identified YI-UF0's Bottomless Matter Pit 2684 | -10/Mines | Discovered new exit (range 7) 3050 | -10/Mines | Discovered exit to Materials (range 8) 3285 | -10/Mines | Learned Materials emergency access door positions 3319 | -10/Mines | Discovered exit to Materials (range 8) 3402 | -10/Mines | Entered Materials 3402 | -9/Materials | Evolved 2 slots: Propulsion x1, Weapon x1 3489 | -9/Materials | Discovered new exit (range 15) 3550 | -9/Materials | Discovered new exit (range 8) 3887 | -9/Materials | Build established: Scavenger-Gunner 4076 | -9/Materials | Discovered new exit (range 8) 4274 | -9/Materials | Repaired Lgt. Treads 5075 | -9/Materials | Discovered new exit (range 16) 5240 | -9/Materials | Identified exit to Mines 5402 | -9/Materials | First assault squad dispatched 5443 | -9/Materials | Learned Materials emergency access door positions 5450 | -9/Materials | Build established: Tank 5500 | -9/Materials | Learned Storage trap positions 5521 | -9/Materials | Learned Storage terminal intel 5554 | -9/Materials | Learned location of 1 exit from Storage 5833 | -9/Materials | Entered Mines 5846 | -9/Mines | Escorted by a lone wolf Derelict 5866 | -9/Mines | Learned location of Storage (-7) 5892 | -9/Mines | Deemed a non-threat by the Exiles lab entrance 5974 | -9/Mines | Learned Materials trap positions 6037 | -9/Mines | Assembled infested the area 6042 | -9/Mines | Assisted by a Guerilla fighting off Assembled 6251 | -9/Mines | Build established: Scavenger-Tank 6328 | -9/Mines | Discovered new exit (range 5) 6334 | -9/Mines | Entered Exiles 6376 | -9/Exiles | Met 8R-AWN 6403 | -9/Exiles | Met EX-HEX 6467 | -9/Exiles | Met EX-DEC 6475 | -9/Exiles | Learned location of Zion (-6) 6641 | -9/Exiles | Build established: Mutant 7107 | -9/Exiles | Discovered new exit (range 15) 7517 | -9/Exiles | Met EX-BIN 7536 | -9/Exiles | Aligned with FarCom system 7538 | -9/Exiles | Given EX-Vault access code 7576 | -9/Exiles | Opened EX-Vault 7618 | -9/Exiles | Warned to stay clear of 0b10 Research branches 7737 | -9/Exiles | Attacked by the Exiles 7858 | -9/Exiles | Core integrity fell below 50% 7920 | -9/Exiles | Lost 9 parts (3n1u5w) 7927 | -9/Exiles | Destroyed 8R-AWN 7941 | -9/Exiles | Self-destructed Last Messages --------------- 07906_ Extracted 4 matter. 07907_ HV Slug penetrates Wall. 07907_ Penetrated by HV Slug. 07908_ Extracted 4 matter. 07912_ Penetrated by HV Slug. 07913_ 8R-AWN knocked back. 07914_ Extracted 4 matter. 07915_ Machine disabled. 07916_ Extracted 4 matter. 07916_ Penetrated by HV Slug. 07916_ HV Slug penetrates Earth. 07918_ Extracted 4 matter. 07920_ Penetrated by HV Slug. 07920_ HV Slug penetrates Wall. 07922_ Extracted 4 matter. 07924_ Penetrated by HV Slug. 07924_ HV Slug penetrates Wall. 07926_ Extracted 4 matter. 07927_ 8R-AWN destroyed. 07928_ Extracted 4 matter. Map ----- +----------------------------------------------------+ | ?????????????????????????????????????????????????? | | ?????????????????????????????????????????????????? | | ?????????????????????????????????????????????????? | | ?????????????????????????????????????????????????? | | ?????????????????????????????????????????????????? | | ?????????????????????????????????????????????????? | | ?????????????????????????????????????????????????? | | ?????????????????????????????????????????????????? | | ?????????????????????????????????????????????????? | | ?????????????????????????????????????????????????? | | ?????????????????????????????????????????????????? | | ?????????????????????????????????????????????????? | | ?????????????????????????????????????????????????? | | ?????????????????????????????????????????????????? | | ?????????????????????????????????????????????????? | | ?????????????????????????????????????????????????? | | ????????????? ??????????????????????????????????? | | ????????????? ??????????????#######????????????? | | ???????????? ######???????#!!! "#????????????? | | ???????????? #""#??????# "#????????????? | | ????????????? ??????# !* "#????????????? | | ?????????????#" #????## =!""#????????????# | | ?????????????"" #####" !""#???????????? | | ???????????????# a % ##" ""#????????????" | | ????????????????# # " ###????????????" | | ???????????????????# %@%%% ###??????????"" | | ???????????????????#### % ###????????"" | | ??????????????????????### % # # ##??????? | | ????????????????######## ] % # #????????" | | ????????????????# !!"""" #####?????# | | ????????????????#! = # # # ####### | | ????????????????#! == ## % ##X# | | ????????????????#! % !#;###" | | ????????????????# !""""" ;;###?#"# | | ????????????????########;; #???#### % | | ???????????????????????### #??????### | | ?????????????????????????# #????????##" | | ?????????????????????????# #??????????"" | | ?????????????????????????# #??????????### | | ?????????????????????????# #????????????##" | | ?????????????????????????# #?????????????#""" | | ?????????????????????????? ??????????????#" | | ?????????????????????????? ?????????????#"" | | ?????????????????????????? ?????????????#""" | | ?????????????????????????? ????????????#""" | | ?????????????????????????? ????????????#""" | | ?????????????????????????? ?????????????"" | | ?????????????????????????? ?????????????""" | | ????????????????????????????????????????"" | | ?????????????????????????????????????????"" | +----------------------------------------------------+ Best States ------------- Heat Dissipation 28 Energy Generation 15 Energy Capacity 265 Matter Stores 300 Matter Capacity 300 Sight Range 16 Terrain Scan Density 10 Armor Coverage 150 Core Shielding 20 Evasion (%) 40 Recoil Reduction 3 Salvage Targeting 1 Item Schematics ----------------- None Robot Schematics ------------------ None Fabricated ------------ Nothing Repaired ---------- Lgt. Treads | 10% | -9/Materials Alien Tech Used ----------------- None Achievements -------------- None Challenges ------------ None Game ------ Seed PhasingFluxStreamer Manual? 0 Play Time 00:33:52 Cumulative 177.1 hours Start 2025.08.14 @ 16:29:22 End 2025.08.14 @ 18:03:50 Sessions 4 Manual Loads 0 Difficulty Rogue Special Mode None Game No. 90 Rogue 90 Adventurer 0 Explorer 0 Win Type - Total 19 Types 9/1/5/1/0/1/1/1/0/0 Lore% 65 Gallery% 61 Achievement% 70 Wizard Run 0 Options --------- Layout 1 ASCII 0 Keyboard 0 Movement Arrows Keybinds 0 Fullscreen 2 Font 24/Tamsyn Map View 50x35 Zoom Use 0% Tactical HUD 1 Map Filters NONE Filters NONE Steam 1 RUN: e29a127d-9e8b-4321-855b-096075fff822